[Event "Early-Titled-Tuesday-Blitz-June-18-2024"]
[Site "Chess.com"]
[Date "2024.06.18"]
[Round "10"]
[White "Moon_stone123"]
[Black "Casper"]
[Result "0-1"]
[WhiteElo "2598"]
[BlackElo "2502"]
[TimeControl "180+1"]
[EndTime "9:55:06 PDT"]
[Termination "Casper won by resignation"]

1. e4 {[%clk 0:03:00.9]} 1... c6 {[%clk 0:03:00.1]} 2. d4 {[%clk 0:02:58.8]}
2... d5 {[%clk 0:03:00.6]} 3. exd5 {[%clk 0:02:59]} 3... cxd5 {[%clk 0:03:01.5]}
4. Bd3 {[%clk 0:02:58.1]} 4... g6 {[%clk 0:03:01.9]} 5. Nf3 {[%clk 0:02:56.4]}
5... Bg7 {[%clk 0:03:02.5]} 6. c3 {[%clk 0:02:54.5]} 6... Nc6 {[%clk 0:03:01.4]}
7. O-O {[%clk 0:02:52.9]} 7... Nf6 {[%clk 0:03:01.4]} 8. h3 {[%clk 0:02:53.1]}
8... O-O {[%clk 0:03:02]} 9. Re1 {[%clk 0:02:51.1]} 9... Bf5 {[%clk 0:03:02.5]}
10. Bf1 {[%clk 0:02:50.6]} 10... a6 {[%clk 0:02:59.9]} 11. a4 {[%clk 0:02:49]}
11... Rc8 {[%clk 0:02:58.2]} 12. Bf4 {[%clk 0:02:44.1]} 12... Re8 {[%clk
0:02:51.4]} 13. Nbd2 {[%clk 0:02:42.7]} 13... Ne4 {[%clk 0:02:46.7]} 14. Nb3
{[%clk 0:02:41.4]} 14... Qb6 {[%clk 0:02:22.9]} 15. a5 {[%clk 0:02:38.6]} 15...
Qd8 {[%clk 0:02:23.1]} 16. Bd3 {[%clk 0:02:36]} 16... Nd6 {[%clk 0:02:10.3]} 17.
Bxd6 {[%clk 0:02:33.9]} 17... Qxd6 {[%clk 0:02:09.1]} 18. Bxf5 {[%clk
0:02:33.2]} 18... gxf5 {[%clk 0:02:08.8]} 19. Nc5 {[%clk 0:02:33.5]} 19... Qc7
{[%clk 0:02:07.9]} 20. b4 {[%clk 0:02:32.2]} 20... e6 {[%clk 0:02:07.3]} 21. Qd2
{[%clk 0:02:13.6]} 21... Kh8 {[%clk 0:02:06.7]} 22. Kh1 {[%clk 0:02:10.4]} 22...
Rg8 {[%clk 0:02:06.3]} 23. Rg1 {[%clk 0:02:09]} 23... Ne7 {[%clk 0:02:06.3]} 24.
Ng5 {[%clk 0:01:58.2]} 24... Ng6 {[%clk 0:02:04.1]} 25. Rae1 {[%clk 0:01:58]}
25... Nh4 {[%clk 0:01:45.1]} 26. g3 {[%clk 0:01:54.4]} 26... Ng6 {[%clk
0:01:42.7]} 27. h4 {[%clk 0:01:55.1]} 27... Bf6 {[%clk 0:01:40.4]} 28. f4 {[%clk
0:01:38.1]} 28... Rg7 {[%clk 0:01:36.3]} 29. Kh2 {[%clk 0:01:37.7]} 29... Rcg8
{[%clk 0:01:36.1]} 30. Qd1 {[%clk 0:01:37]} 30... Nxf4 {[%clk 0:01:29.6]} 31.
gxf4 {[%clk 0:01:29]} 31... Qxf4+ {[%clk 0:01:30.5]} 32. Kh3 {[%clk 0:01:27.5]}
32... Bxg5 {[%clk 0:01:27.9]} 33. hxg5 {[%clk 0:01:27.3]} 33... Rxg5 {[%clk
0:01:26.7]} 34. Rxg5 {[%clk 0:01:27.1]} 34... Qxg5 {[%clk 0:01:23.9]} 0-1

[Event "Early-Titled-Tuesday-Blitz-June-18-2024"]
[Site "Chess.com"]
[Date "2024.06.18"]
[Round "10"]
[White "Oleg_Papayan"]
[Black "unbreakablepawn35"]
[Result "0-1"]
[WhiteElo "2540"]
[BlackElo "2417"]
[TimeControl "180+1"]
[EndTime "9:55:20 PDT"]
[Termination "unbreakablepawn35 won by resignation"]

1. d4 {[%clk 0:03:00.9]} 1... Nf6 {[%clk 0:02:59.4]} 2. Nc3 {[%clk 0:03:01.1]}
2... d5 {[%clk 0:02:59]} 3. Bf4 {[%clk 0:03:01.3]} 3... g6 {[%clk 0:02:59.5]} 4.
e3 {[%clk 0:02:54.5]} 4... Bg7 {[%clk 0:02:59.4]} 5. h4 {[%clk 0:02:50.6]} 5...
h5 {[%clk 0:02:58.4]} 6. Qd2 {[%clk 0:02:42.7]} 6... O-O {[%clk 0:02:57.3]} 7.
Nf3 {[%clk 0:02:31.3]} 7... c5 {[%clk 0:02:55.1]} 8. dxc5 {[%clk 0:02:24.5]}
8... Qa5 {[%clk 0:02:51]} 9. O-O-O {[%clk 0:02:11.8]} 9... Ne4 {[%clk
0:02:09.3]} 10. Nxe4 {[%clk 0:02:12]} 10... Qxa2 {[%clk 0:02:08.9]} 11. c3
{[%clk 0:01:33.6]} 11... dxe4 {[%clk 0:01:58.7]} 12. Ne5 {[%clk 0:01:33.9]}
12... Nc6 {[%clk 0:01:52.1]} 13. Bc4 {[%clk 0:01:25.4]} 13... Qa4 {[%clk
0:01:34.5]} 14. Nxc6 {[%clk 0:01:15.3]} 14... bxc6 {[%clk 0:01:29.8]} 15. b3
{[%clk 0:00:52.4]} 15... Qa1+ {[%clk 0:01:18.2]} 16. Kc2 {[%clk 0:00:52.6]}
16... Qa2+ {[%clk 0:01:19.1]} 17. Kc1 {[%clk 0:00:53]} 17... Qa3+ {[%clk
0:01:19.7]} 18. Kc2 {[%clk 0:00:48.7]} 18... Bg4 {[%clk 0:01:17.8]} 19. Ra1
{[%clk 0:00:45.3]} 19... Qxc5 {[%clk 0:01:18.3]} 20. Ra6 {[%clk 0:00:29]} 20...
Rfd8 {[%clk 0:01:16.3]} 21. Qd1 {[%clk 0:00:29.5]} 21... Bxd1+ {[%clk
0:01:15.6]} 0-1

[Event "Early-Titled-Tuesday-Blitz-June-18-2024"]
[Site "Chess.com"]
[Date "2024.06.18"]
[Round "10"]
[White "GHANDEEVAM2003"]
[Black "Mikhail_Bryakin"]
[Result "1/2-1/2"]
[WhiteElo "2977"]
[BlackElo "2767"]
[TimeControl "180+1"]
[EndTime "9:55:25 PDT"]
[Termination "Game drawn - insufficient material"]

1. Nf3 {[%clk 0:03:00.9]} 1... Nf6 {[%clk 0:02:59.3]} 2. g3 {[%clk 0:03:00.6]}
2... b6 {[%clk 0:02:58]} 3. Bg2 {[%clk 0:03:00.8]} 3... Bb7 {[%clk 0:02:58.5]}
4. O-O {[%clk 0:03:01.6]} 4... c5 {[%clk 0:02:57.4]} 5. d3 {[%clk 0:03:01.2]}
5... g6 {[%clk 0:02:57]} 6. e4 {[%clk 0:03:00.2]} 6... d6 {[%clk 0:02:57]} 7. a4
{[%clk 0:02:58]} 7... a6 {[%clk 0:02:56.7]} 8. Re1 {[%clk 0:02:56.4]} 8... Bg7
{[%clk 0:02:57]} 9. Nbd2 {[%clk 0:02:56]} 9... O-O {[%clk 0:02:56.2]} 10. e5
{[%clk 0:02:56.3]} 10... dxe5 {[%clk 0:02:56.3]} 11. Nxe5 {[%clk 0:02:57.2]}
11... Bxg2 {[%clk 0:02:56.5]} 12. Kxg2 {[%clk 0:02:58.1]} 12... Nfd7 {[%clk
0:02:54.1]} 13. Qf3 {[%clk 0:02:52.7]} 13... Ra7 {[%clk 0:02:47.7]} 14. Ndc4
{[%clk 0:02:52.2]} 14... Nxe5 {[%clk 0:02:36.1]} 15. Nxe5 {[%clk 0:02:53.1]}
15... e6 {[%clk 0:02:36.4]} 16. Bf4 {[%clk 0:02:47.5]} 16... Qd5 {[%clk
0:02:24.9]} 17. h4 {[%clk 0:02:47]} 17... Qxf3+ {[%clk 0:02:22.3]} 18. Kxf3
{[%clk 0:02:47.9]} 18... Rc8 {[%clk 0:02:19.4]} 19. h5 {[%clk 0:02:46.9]} 19...
Nd7 {[%clk 0:02:17.5]} 20. Nc4 {[%clk 0:02:44.7]} 20... Bf8 {[%clk 0:02:08.3]}
21. Rh1 {[%clk 0:02:41.9]} 21... Rb7 {[%clk 0:02:05.1]} 22. hxg6 {[%clk
0:02:39.5]} 22... hxg6 {[%clk 0:02:04.9]} 23. Bd2 {[%clk 0:02:40.1]} 23... b5
{[%clk 0:01:59.6]} 24. axb5 {[%clk 0:02:41]} 24... axb5 {[%clk 0:01:59.9]} 25.
Bc3 {[%clk 0:02:41.7]} 25... f6 {[%clk 0:01:59.7]} 26. Ne3 {[%clk 0:02:42.3]}
26... Bg7 {[%clk 0:01:51.6]} 27. b3 {[%clk 0:02:40.3]} 27... Nb6 {[%clk
0:01:42.6]} 28. Ra6 {[%clk 0:02:36]} 28... Ra8 {[%clk 0:01:34.9]} 29. Rxa8+
{[%clk 0:02:26]} 29... Nxa8 {[%clk 0:01:35.8]} 30. Ng4 {[%clk 0:02:26.4]} 30...
e5 {[%clk 0:01:29.9]} 31. Ra1 {[%clk 0:02:23.3]} 31... Nc7 {[%clk 0:01:29]} 32.
Ne3 {[%clk 0:02:19.8]} 32... Kf7 {[%clk 0:01:28.2]} 33. g4 {[%clk 0:02:18.4]}
33... Bh6 {[%clk 0:01:25.8]} 34. b4 {[%clk 0:02:16.5]} 34... Bxe3 {[%clk
0:01:20.5]} 35. fxe3 {[%clk 0:02:14.4]} 35... Nd5 {[%clk 0:01:20.4]} 36. Bd2
{[%clk 0:02:11.4]} 36... Nxb4 {[%clk 0:01:19.1]} 37. Bxb4 {[%clk 0:02:11]} 37...
cxb4 {[%clk 0:01:20]} 38. Rb1 {[%clk 0:02:11.3]} 38... Rc7 {[%clk 0:01:20.4]}
39. Rxb4 {[%clk 0:02:12]} 39... Rxc2 {[%clk 0:01:20.7]} 40. Rxb5 {[%clk
0:02:12.7]} 40... g5 {[%clk 0:01:04.8]} 41. Rb7+ {[%clk 0:02:10.8]} 41... Kg6
{[%clk 0:01:00.3]} 42. Rd7 {[%clk 0:02:06.7]} 42... Rd2 {[%clk 0:00:52.6]} 43.
d4 {[%clk 0:02:04.8]} 43... exd4 {[%clk 0:00:52.6]} 44. exd4 {[%clk 0:02:05.7]}
44... Rd3+ {[%clk 0:00:52.4]} 45. Kf2 {[%clk 0:02:06.3]} 45... Rd2+ {[%clk
0:00:51.8]} 46. Ke3 {[%clk 0:02:06.9]} 46... Rg2 {[%clk 0:00:51.5]} 47. Kf3
{[%clk 0:02:07]} 47... Rd2 {[%clk 0:00:52]} 48. d5 {[%clk 0:02:07.3]} 48... Rd4
{[%clk 0:00:52.4]} 49. d6 {[%clk 0:02:06.4]} 49... f5 {[%clk 0:00:52.5]} 50.
gxf5+ {[%clk 0:02:02.1]} 50... Kxf5 {[%clk 0:00:51.9]} 51. Rd8 {[%clk
0:02:02.8]} 51... Ke6 {[%clk 0:00:52]} 52. d7 {[%clk 0:02:02.4]} 52... Rxd7
{[%clk 0:00:51.8]} 53. Rxd7 {[%clk 0:02:03.3]} 53... Kxd7 {[%clk 0:00:52.3]} 54.
Kg4 {[%clk 0:02:04.2]} 54... Ke7 {[%clk 0:00:52.9]} 55. Kxg5 {[%clk 0:02:05.1]}
1/2-1/2

[Event "Early-Titled-Tuesday-Blitz-June-18-2024"]
[Site "Chess.com"]
[Date "2024.06.18"]
[Round "10"]
[White "yonaltimur"]
[Black "eltenedor"]
[Result "1-0"]
[WhiteElo "2296"]
[BlackElo "2125"]
[TimeControl "180+1"]
[EndTime "9:55:28 PDT"]
[Termination "yonaltimur won by resignation"]

1. e4 {[%clk 0:03:00.9]} 1... b6 {[%clk 0:02:56.6]} 2. d4 {[%clk 0:03:00.3]}
2... Bb7 {[%clk 0:02:56.9]} 3. Nc3 {[%clk 0:03:00.3]} 3... e6 {[%clk 0:02:56.7]}
4. Nf3 {[%clk 0:02:55.2]} 4... d6 {[%clk 0:02:54.1]} 5. Be2 {[%clk 0:02:55.2]}
5... Nd7 {[%clk 0:02:54]} 6. O-O {[%clk 0:02:54.9]} 6... g6 {[%clk 0:02:54.2]}
7. Be3 {[%clk 0:02:54.1]} 7... Bg7 {[%clk 0:02:53.6]} 8. Qd2 {[%clk 0:02:53.7]}
8... h6 {[%clk 0:02:53.6]} 9. Rfe1 {[%clk 0:02:44.3]} 9... Ngf6 {[%clk
0:02:38.1]} 10. Bd3 {[%clk 0:02:40.2]} 10... Ng4 {[%clk 0:02:29.3]} 11. h3
{[%clk 0:02:39]} 11... Nxe3 {[%clk 0:02:28.9]} 12. Qxe3 {[%clk 0:02:39.9]} 12...
O-O {[%clk 0:02:20.7]} 13. Rad1 {[%clk 0:02:24.1]} 13... Qe7 {[%clk 0:02:19.5]}
14. Qf4 {[%clk 0:02:13.6]} 14... a6 {[%clk 0:01:55.4]} 15. e5 {[%clk 0:02:06]}
15... Bxf3 {[%clk 0:01:36.5]} 16. exd6 {[%clk 0:02:05.4]} 16... cxd6 {[%clk
0:01:26.3]} 17. Qxf3 {[%clk 0:02:05.4]} 17... Bxd4 {[%clk 0:01:19]} 18. Be4
{[%clk 0:02:04.5]} 18... Bxc3 {[%clk 0:01:09.4]} 19. Qxc3 {[%clk 0:02:02.5]}
19... Rac8 {[%clk 0:01:03.6]} 20. Qd2 {[%clk 0:02:00.3]} 20... f5 {[%clk
0:00:45.3]} 21. Bf3 {[%clk 0:01:57]} 21... Ne5 {[%clk 0:00:38.6]} 22. Qxd6
{[%clk 0:01:55.9]} 22... Nxf3+ {[%clk 0:00:32.5]} 23. gxf3 {[%clk 0:01:55.7]}
23... Qg5+ {[%clk 0:00:26.5]} 24. Kf1 {[%clk 0:01:53.3]} 24... Rxc2 {[%clk
0:00:21.3]} 25. Rxe6 {[%clk 0:01:52.4]} 25... Kg7 {[%clk 0:00:11.9]} 26. Re7+
{[%clk 0:01:49.8]} 26... Rf7 {[%clk 0:00:12.1]} 27. Qe5+ {[%clk 0:01:46.8]}
27... Qf6 {[%clk 0:00:11]} 28. Rxf7+ {[%clk 0:01:47]} 28... Kxf7 {[%clk
0:00:11.2]} 29. Rd7+ {[%clk 0:01:47.5]} 1-0

[Event "Early-Titled-Tuesday-Blitz-June-18-2024"]
[Site "Chess.com"]
[Date "2024.06.18"]
[Round "10"]
[White "sanbruh"]
[Black "chezzgirl04"]
[Result "0-1"]
[WhiteElo "2438"]
[BlackElo "2291"]
[TimeControl "180+1"]
[EndTime "9:55:42 PDT"]
[Termination "chezzgirl04 won by checkmate"]

1. e4 {[%clk 0:03:00.9]} 1... e5 {[%clk 0:02:52.7]} 2. Nf3 {[%clk 0:03:00.7]}
2... Nc6 {[%clk 0:02:51.8]} 3. Bb5 {[%clk 0:03:01.1]} 3... a6 {[%clk 0:02:52.1]}
4. Ba4 {[%clk 0:03:01.7]} 4... Nf6 {[%clk 0:02:51.9]} 5. O-O {[%clk 0:03:02.2]}
5... b5 {[%clk 0:02:52.4]} 6. Bb3 {[%clk 0:03:02.7]} 6... Bc5 {[%clk 0:02:53]}
7. c3 {[%clk 0:03:01.4]} 7... O-O {[%clk 0:02:53.3]} 8. d4 {[%clk 0:02:59.2]}
8... Bb6 {[%clk 0:02:47.2]} 9. dxe5 {[%clk 0:02:50.7]} 9... Nxe4 {[%clk
0:02:46.8]} 10. Bd5 {[%clk 0:02:45.6]} 10... Nc5 {[%clk 0:02:46.6]} 11. Be3
{[%clk 0:02:42.8]} 11... Bb7 {[%clk 0:02:41.8]} 12. Re1 {[%clk 0:02:25.9]} 12...
h6 {[%clk 0:02:17.2]} 13. Qd2 {[%clk 0:02:20.9]} 13... Ne7 {[%clk 0:02:06.5]}
14. Bxc5 {[%clk 0:02:14.6]} 14... Nxd5 {[%clk 0:01:58.7]} 15. Bxf8 {[%clk
0:02:13.5]} 15... Qxf8 {[%clk 0:01:59.3]} 16. Na3 {[%clk 0:02:05.3]} 16... g5
{[%clk 0:01:48.9]} 17. c4 {[%clk 0:01:52]} 17... Nf4 {[%clk 0:01:45]} 18. cxb5
{[%clk 0:01:40.4]} 18... Nxg2 {[%clk 0:01:30.2]} 19. Kxg2 {[%clk 0:01:25.5]}
19... g4 {[%clk 0:01:30.1]} 20. h3 {[%clk 0:01:18.5]} 20... Bxf3+ {[%clk
0:01:26.8]} 21. Kh2 {[%clk 0:01:16.9]} 21... Qe7 {[%clk 0:01:13.8]} 22. Nc4
{[%clk 0:01:01.7]} 22... Qh4 {[%clk 0:01:09.4]} 23. Ne3 {[%clk 0:00:36.6]} 23...
Qxh3+ {[%clk 0:00:57.5]} 24. Kg1 {[%clk 0:00:36.4]} 24... Qh1# {[%clk
0:00:57.5]} 0-1

[Event "Early-Titled-Tuesday-Blitz-June-18-2024"]
[Site "Chess.com"]
[Date "2024.06.18"]
[Round "10"]
[White "jaskol95"]
[Black "Rurep26"]
[Result "0-1"]
[WhiteElo "2620"]
[BlackElo "2735"]
[TimeControl "180+1"]
[EndTime "9:55:44 PDT"]
[Termination "Rurep26 won by resignation"]

1. e4 {[%clk 0:03:00.9]} 1... e6 {[%clk 0:02:57]} 2. d4 {[%clk 0:02:57.8]} 2...
d5 {[%clk 0:02:57.2]} 3. Nc3 {[%clk 0:02:58.5]} 3... Bb4 {[%clk 0:02:54.8]} 4.
e5 {[%clk 0:02:56.6]} 4... c5 {[%clk 0:02:54.6]} 5. a3 {[%clk 0:02:56.4]} 5...
Bxc3+ {[%clk 0:02:54.5]} 6. bxc3 {[%clk 0:02:57.2]} 6... Qc7 {[%clk 0:02:55]} 7.
Qg4 {[%clk 0:02:53.2]} 7... f5 {[%clk 0:02:55]} 8. Qh5+ {[%clk 0:02:38]} 8... g6
{[%clk 0:02:53.2]} 9. Qf3 {[%clk 0:02:38.4]} 9... Nc6 {[%clk 0:02:51.7]} 10. Bb5
{[%clk 0:02:35.4]} 10... cxd4 {[%clk 0:02:50.4]} 11. cxd4 {[%clk 0:02:33.6]}
11... Qa5+ {[%clk 0:02:49.7]} 12. Bd2 {[%clk 0:02:30.5]} 12... Qxb5 {[%clk
0:02:50.1]} 13. Ne2 {[%clk 0:02:31.1]} 13... Nge7 {[%clk 0:02:44.8]} 14. h4
{[%clk 0:02:30.6]} 14... h6 {[%clk 0:02:44.4]} 15. g4 {[%clk 0:02:29.4]} 15...
b6 {[%clk 0:02:35.5]} 16. gxf5 {[%clk 0:02:28.9]} 16... Nxf5 {[%clk 0:02:31.6]}
17. Qg4 {[%clk 0:02:28.9]} 17... Rg8 {[%clk 0:02:28.8]} 18. c3 {[%clk
0:02:19.6]} 18... Ba6 {[%clk 0:02:26.7]} 19. Nf4 {[%clk 0:02:16.3]} 19... Kd7
{[%clk 0:02:23.9]} 20. a4 {[%clk 0:02:10.4]} 20... Qb2 {[%clk 0:02:20.2]} 21.
Rc1 {[%clk 0:02:07.7]} 21... Rac8 {[%clk 0:02:04.9]} 22. h5 {[%clk 0:01:59.1]}
22... Ncxd4 {[%clk 0:01:53.7]} 23. hxg6 {[%clk 0:01:47.3]} 23... Nb3 {[%clk
0:01:35.6]} 24. Rd1 {[%clk 0:01:37.5]} 24... Nxd2 {[%clk 0:01:34.6]} 25. Rxd2
{[%clk 0:01:37.2]} 25... Qc1+ {[%clk 0:01:34.9]} 26. Qd1 {[%clk 0:01:30.3]}
26... Qxc3 {[%clk 0:01:30.6]} 27. Rh3 {[%clk 0:01:29.1]} 27... Qxe5+ {[%clk
0:01:29.2]} 28. Ne2 {[%clk 0:01:27.2]} 28... Rxg6 {[%clk 0:01:25.4]} 29. Kf1
{[%clk 0:01:13.7]} 29... Rcg8 {[%clk 0:01:24]} 30. Rh1 {[%clk 0:01:14.3]} 30...
Qh2 {[%clk 0:01:19.2]} 31. Rxd5+ {[%clk 0:01:13.6]} 31... exd5 {[%clk
0:01:15.4]} 32. Qxd5+ {[%clk 0:01:13.6]} 32... Nd6 {[%clk 0:01:11.7]} 33. Ke1
{[%clk 0:01:10.7]} 33... Rg1+ {[%clk 0:01:01.2]} 34. Nxg1 {[%clk 0:01:04.4]}
34... Rxg1+ {[%clk 0:01:02.1]} 35. Rxg1 {[%clk 0:01:04.8]} 35... Qxg1+ {[%clk
0:01:02.4]} 36. Kd2 {[%clk 0:01:05.7]} 36... Qg5+ {[%clk 0:01:02.6]} 37. Qxg5
{[%clk 0:01:03.7]} 37... hxg5 {[%clk 0:01:03.5]} 38. Ke3 {[%clk 0:01:04.5]} 0-1

[Event "Early-Titled-Tuesday-Blitz-June-18-2024"]
[Site "Chess.com"]
[Date "2024.06.18"]
[Round "10"]
[White "SahibSinghKnight"]
[Black "Erdnya15"]
[Result "1-0"]
[WhiteElo "2707"]
[BlackElo "2535"]
[TimeControl "180+1"]
[EndTime "9:55:47 PDT"]
[Termination "SahibSinghKnight won by resignation"]

1. e4 {[%clk 0:02:58.3]} 1... c5 {[%clk 0:02:59.7]} 2. Nf3 {[%clk 0:02:57.6]}
2... d6 {[%clk 0:02:59.5]} 3. d4 {[%clk 0:02:57.9]} 3... cxd4 {[%clk 0:03:00.4]}
4. Nxd4 {[%clk 0:02:58.8]} 4... Nf6 {[%clk 0:03:00.6]} 5. Nc3 {[%clk 0:02:59.5]}
5... a6 {[%clk 0:03:00.8]} 6. Bg5 {[%clk 0:03:00.1]} 6... e6 {[%clk 0:03:00.2]}
7. f4 {[%clk 0:02:59.5]} 7... h6 {[%clk 0:03:00.7]} 8. Bh4 {[%clk 0:02:59.5]}
8... Nbd7 {[%clk 0:03:01.3]} 9. Qf3 {[%clk 0:02:50.6]} 9... e5 {[%clk
0:03:00.4]} 10. fxe5 {[%clk 0:02:46.4]} 10... Nxe5 {[%clk 0:02:58.2]} 11. Qf2
{[%clk 0:02:39.3]} 11... Be7 {[%clk 0:02:53.9]} 12. Bxf6 {[%clk 0:02:35]} 12...
Bxf6 {[%clk 0:02:52]} 13. O-O-O {[%clk 0:02:35.6]} 13... Ng4 {[%clk 0:02:23.9]}
14. Qe1 {[%clk 0:02:34.4]} 14... Ne3 {[%clk 0:02:04.1]} 15. Rd3 {[%clk
0:02:34.3]} 15... O-O {[%clk 0:01:52.1]} 16. e5 {[%clk 0:02:12.5]} 16... dxe5
{[%clk 0:01:16.8]} 17. Nf3 {[%clk 0:01:58.6]} 17... Qc7 {[%clk 0:01:10.2]} 18.
Rxe3 {[%clk 0:01:53.7]} 18... Be6 {[%clk 0:01:08.7]} 19. Kb1 {[%clk 0:01:50]}
19... b5 {[%clk 0:01:06.5]} 20. Ne4 {[%clk 0:01:48.7]} 20... Be7 {[%clk
0:01:05.5]} 21. Ned2 {[%clk 0:01:40.4]} 21... Rac8 {[%clk 0:01:02.3]} 22. Bd3
{[%clk 0:01:37.4]} 22... Rfd8 {[%clk 0:00:50.6]} 23. Rxe5 {[%clk 0:01:23.3]}
23... Bf6 {[%clk 0:00:48.2]} 24. Rxe6 {[%clk 0:01:23.2]} 24... Rxd3 {[%clk
0:00:44]} 25. Re8+ {[%clk 0:01:21.6]} 25... Kh7 {[%clk 0:00:19.7]} 26. Rxc8
{[%clk 0:01:19.8]} 26... Qe5 {[%clk 0:00:15.6]} 27. Nxe5 {[%clk 0:01:19.4]} 1-0

[Event "Early-Titled-Tuesday-Blitz-June-18-2024"]
[Site "Chess.com"]
[Date "2024.06.18"]
[Round "10"]
[White "Gumugama"]
[Black "Veleamater"]
[Result "0-1"]
[WhiteElo "2258"]
[BlackElo "2392"]
[TimeControl "180+1"]
[EndTime "9:56:05 PDT"]
[Termination "Veleamater won by checkmate"]

1. e4 {[%clk 0:03:00.9]} 1... d6 {[%clk 0:03:00.9]} 2. d4 {[%clk 0:02:59.4]}
2... g6 {[%clk 0:03:01.8]} 3. f3 {[%clk 0:02:59.7]} 3... Bg7 {[%clk 0:03:02.7]}
4. Be3 {[%clk 0:02:59.9]} 4... Nf6 {[%clk 0:03:03.2]} 5. Nc3 {[%clk 0:03:00.2]}
5... O-O {[%clk 0:03:03.8]} 6. Qd2 {[%clk 0:03:00.7]} 6... Nc6 {[%clk
0:03:04.3]} 7. Bh6 {[%clk 0:03:00.9]} 7... e5 {[%clk 0:03:04.5]} 8. Bxg7 {[%clk
0:02:58.2]} 8... Kxg7 {[%clk 0:03:05.4]} 9. Nge2 {[%clk 0:02:55.6]} 9... h6
{[%clk 0:03:03.4]} 10. O-O-O {[%clk 0:02:55.1]} 10... Nd7 {[%clk 0:03:02.1]} 11.
h4 {[%clk 0:02:51.8]} 11... Nb6 {[%clk 0:03:00.7]} 12. dxe5 {[%clk 0:02:48.4]}
12... dxe5 {[%clk 0:02:59.2]} 13. Nd5 {[%clk 0:02:44.2]} 13... Be6 {[%clk
0:02:57.7]} 14. Nec3 {[%clk 0:02:42]} 14... Nd4 {[%clk 0:02:56.5]} 15. Kb1
{[%clk 0:02:23.7]} 15... c6 {[%clk 0:02:56.8]} 16. Ne3 {[%clk 0:02:15.8]} 16...
a6 {[%clk 0:02:54.7]} 17. Ng4 {[%clk 0:01:57.7]} 17... Bxg4 {[%clk 0:02:49.4]}
18. fxg4 {[%clk 0:01:58.6]} 18... Qd7 {[%clk 0:02:44.3]} 19. Be2 {[%clk
0:01:56.8]} 19... Nxe2 {[%clk 0:02:43]} 20. Qxe2 {[%clk 0:01:54.5]} 20... Qe6
{[%clk 0:02:36.9]} 21. Rhg1 {[%clk 0:01:28.3]} 21... Rad8 {[%clk 0:02:36.8]} 22.
g5 {[%clk 0:01:26.4]} 22... h5 {[%clk 0:02:36.4]} 23. g4 {[%clk 0:01:24.9]}
23... hxg4 {[%clk 0:02:35]} 24. Rxg4 {[%clk 0:01:20.5]} 24... Rxd1+ {[%clk
0:02:27.2]} 25. Nxd1 {[%clk 0:01:09.9]} 25... Rd8 {[%clk 0:02:25.9]} 26. Rg1
{[%clk 0:01:03.8]} 26... Qc4 {[%clk 0:02:21.6]} 27. Qg4 {[%clk 0:00:56.4]} 27...
Qd4 {[%clk 0:02:17.8]} 28. h5 {[%clk 0:00:50.5]} 28... gxh5 {[%clk 0:02:15.5]}
29. Qf3 {[%clk 0:00:19.7]} 29... Qxg1 {[%clk 0:02:12.4]} 30. Qf6+ {[%clk
0:00:19.2]} 30... Kh7 {[%clk 0:02:11.9]} 31. Qxd8 {[%clk 0:00:17.5]} 31... Nd5
{[%clk 0:02:09.3]} 32. Kc1 {[%clk 0:00:12.4]} 32... Ne3 {[%clk 0:02:09.1]} 33.
Qd3 {[%clk 0:00:11.1]} 33... Qxd1+ {[%clk 0:02:08.9]} 34. Qxd1 {[%clk
0:00:11.9]} 34... Nxd1 {[%clk 0:02:09.3]} 35. Kxd1 {[%clk 0:00:12.8]} 35... Kg6
{[%clk 0:02:09.6]} 36. c3 {[%clk 0:00:13]} 36... Kxg5 {[%clk 0:02:09.9]} 37. b3
{[%clk 0:00:13.6]} 37... f5 {[%clk 0:02:10.1]} 38. b4 {[%clk 0:00:14.5]} 38...
fxe4 {[%clk 0:02:09.7]} 39. Kd2 {[%clk 0:00:15.4]} 39... Kf4 {[%clk 0:02:09.9]}
40. Ke2 {[%clk 0:00:15.6]} 40... e3 {[%clk 0:02:09.5]} 41. c4 {[%clk 0:00:16.5]}
41... Ke4 {[%clk 0:02:09.7]} 42. a4 {[%clk 0:00:16.4]} 42... Kd4 {[%clk
0:02:09.7]} 43. b5 {[%clk 0:00:17.3]} 43... axb5 {[%clk 0:02:09.7]} 44. cxb5
{[%clk 0:00:18.2]} 44... cxb5 {[%clk 0:02:09.1]} 45. a5 {[%clk 0:00:17.9]} 45...
b4 {[%clk 0:02:08.3]} 46. Kd1 {[%clk 0:00:17]} 46... Kd3 {[%clk 0:02:07.2]} 47.
Kc1 {[%clk 0:00:17.9]} 47... e2 {[%clk 0:02:07.3]} 48. Kb2 {[%clk 0:00:18.8]}
48... e1=Q {[%clk 0:02:07.3]} 49. Kb3 {[%clk 0:00:19.7]} 49... Qc3+ {[%clk
0:02:07.2]} 50. Ka4 {[%clk 0:00:20.6]} 50... Kc4 {[%clk 0:02:06.2]} 51. a6
{[%clk 0:00:01.2]} 51... Qa3# {[%clk 0:02:05.8]} 0-1

[Event "Early-Titled-Tuesday-Blitz-June-18-2024"]
[Site "Chess.com"]
[Date "2024.06.18"]
[Round "10"]
[White "viktorskliarov"]
[Black "Manukyan_Artak"]
[Result "1-0"]
[WhiteElo "2646"]
[BlackElo "2500"]
[TimeControl "180+1"]
[EndTime "9:56:11 PDT"]
[Termination "viktorskliarov won by checkmate"]

1. e4 {[%clk 0:03:00.9]} 1... c6 {[%clk 0:02:55]} 2. d4 {[%clk 0:03:01]} 2... d5
{[%clk 0:02:55.6]} 3. e5 {[%clk 0:03:01.5]} 3... Bf5 {[%clk 0:02:55.2]} 4. Nf3
{[%clk 0:03:02.1]} 4... e6 {[%clk 0:02:55.3]} 5. Be2 {[%clk 0:03:02.3]} 5... c5
{[%clk 0:02:53.5]} 6. Be3 {[%clk 0:03:02.1]} 6... Qb6 {[%clk 0:02:51.9]} 7. Nc3
{[%clk 0:03:02.1]} 7... Qxb2 {[%clk 0:02:50]} 8. Qb1 {[%clk 0:03:01.7]} 8...
Qxb1+ {[%clk 0:02:46.1]} 9. Rxb1 {[%clk 0:03:01.6]} 9... Bxc2 {[%clk 0:02:47]}
10. Rxb7 {[%clk 0:02:56.1]} 10... c4 {[%clk 0:02:46.1]} 11. Kd2 {[%clk
0:02:14.5]} 11... Bg6 {[%clk 0:02:42.3]} 12. Nh4 {[%clk 0:02:13.8]} 12... Nh6
{[%clk 0:02:33.7]} 13. Nxg6 {[%clk 0:02:00.5]} 13... hxg6 {[%clk 0:02:32.4]} 14.
g4 {[%clk 0:01:59.2]} 14... Nc6 {[%clk 0:02:14]} 15. Rhb1 {[%clk 0:01:48.4]}
15... Nd8 {[%clk 0:02:09.3]} 16. Rc7 {[%clk 0:01:41.3]} 16... Ng8 {[%clk
0:02:04.7]} 17. Bd1 {[%clk 0:01:26.5]} 17... Be7 {[%clk 0:02:00.7]} 18. Ba4+
{[%clk 0:01:24.9]} 18... Kf8 {[%clk 0:02:00.3]} 19. Rb5 {[%clk 0:00:49]} 19...
Rxh2 {[%clk 0:01:55.5]} 20. Ra5 {[%clk 0:00:47.1]} 20... a6 {[%clk 0:01:48.4]}
21. Bb5 {[%clk 0:00:37.3]} 21... Nh6 {[%clk 0:01:43.8]} 22. Rxa6 {[%clk
0:00:29.8]} 22... Rxa6 {[%clk 0:01:42.7]} 23. Bxa6 {[%clk 0:00:30.4]} 23... Nxg4
{[%clk 0:01:43.3]} 24. a4 {[%clk 0:00:30.1]} 24... Nxf2 {[%clk 0:01:37.4]} 25.
Bxf2 {[%clk 0:00:26.5]} 25... Rxf2+ {[%clk 0:01:38.3]} 26. Kd1 {[%clk
0:00:24.1]} 26... g5 {[%clk 0:01:29.2]} 27. Bb5 {[%clk 0:00:13.4]} 27... g4
{[%clk 0:01:26.5]} 28. a5 {[%clk 0:00:12.8]} 28... Bb4 {[%clk 0:01:20.2]} 29. a6
{[%clk 0:00:07.7]} 29... Bxc3 {[%clk 0:01:18.5]} 30. a7 {[%clk 0:00:08]} 30...
Ra2 {[%clk 0:01:18.6]} 31. Rc8 {[%clk 0:00:08.2]} 31... Rxa7 {[%clk 0:01:13.8]}
32. Rxd8+ {[%clk 0:00:08.3]} 32... Ke7 {[%clk 0:01:14.1]} 33. Re8# {[%clk
0:00:08.8]} 1-0